{"text_format":"2","workbook":"xlsx","n_sheets":14,"sheets":["Instructions","Assessment Worksheet","July","August","September","October","November","December","January","February","March","April","May","June"],"not_rendered":{"charts":0,"images":2,"macros":0,"external_links":0,"defined_names":0,"comments":0,"pivot_tables":0},"unopened":[],"bounds":{"document_bytes":16777216,"sheet_cells":100000,"run_cost":"one","rows_first":2000,"rows_last":500,"rows_between":2000,"halvings":0,"cell_chars":16384,"cell_head_chars":4096},"cells_cut":0,"cells_raw":0,"read":"whole","date_system":"1900"}

{"sheet":"Instructions","index":0,"n_rows":11,"n_cols":1,"rows_kept":11,"cut":false,"hidden":false,"merged":[]}
["Assessment Worksheet Instructions"]
["1. Access http://dashboards.toastmasters.org/"]
["Select your district from the drop-down on the top left."]
["2. Access the Assessment Worksheet tab."]
["Enter your membership payments base on the Assessment Worksheet tab in cell C1."]
["Enter your club base on the Assessment Worksheet tab in cell C2."]
["3. Go to the tab for the current month."]
["Enter the membership payments year-to-date in cell J3."]
["Enter the paid clubs year-to-date in cell J11."]
["Follow the instructions in Goal 3: Distinguished Clubs and enter the result in cell J28."]
["If you received a \"yes\" answer to all questions in bold on your tab for this month, you are relatively on track with your district goals.\nIf you received a \"no\" answer to any questions in bold on your tab for this month, you may need to make some adjustments for that goal."]

{"sheet":"Assessment Worksheet","index":1,"n_rows":30,"n_cols":16,"rows_kept":30,"cut":false,"hidden":false,"merged":[]}
["Membership Payments Base"]
["Club Base"]
[]
[]
[null,null,"Year-end","Net","July ","August","September","October","November","December","January","February","March","April","May","June"]
["Goal 1: Membership Payments Growth"]
["Distinguished",{"$f":"C1*1.015","v":0},{"$f":"ROUNDUP(B7,0)","v":0},null,{"$f":"$C$1*E26","v":0},{"$f":"$C$1*F26","v":0},0,0,0,0,0,0,0,0,0,{"$f":"$C$1*P26","v":0}]
["Select Distinguished",{"$f":"C1*1.03","v":0},{"$f":"ROUNDUP(B8,0)","v":0},null,{"$f":"$C$1*E27","v":0},{"$f":"$C$1*F27","v":0},0,0,0,0,0,0,0,0,0,0]
["President's Distinguished",{"$f":"C1*1.05","v":0},{"$f":"ROUNDUP(B9,0)","v":0},null,{"$f":"$C$1*E28","v":0},{"$f":"$C$1*F28","v":0},0,0,0,0,0,0,0,0,0,0]
["Smedley Distinguished",{"$f":"C1*1.08","v":0},{"$f":"ROUNDUP(B10,0)","v":0},null,{"$f":"$C$1*E29","v":0},{"$f":"$C$1*F29","v":0},0,0,0,0,0,0,0,0,0,0]
["Goal 2: Club Growth"]
["Distinguished",{"$f":"C2*1.015","v":0},{"$f":"ROUNDUP(B12,0)","v":0},{"$f":"C12-C2","v":0},{"$f":"D12/12","v":0},{"$f":"E12*2","v":0},{"$f":"E12*3","v":0},{"$f":"E12*4","v":0},{"$f":"E12*5","v":0},{"$f":"E12*6","v":0},{"$f":"E12*7","v":0},{"$f":"E12*8","v":0},{"$f":"E12*9","v":0},{"$f":"E12*10","v":0},{"$f":"E12*11","v":0},{"$f":"E12*12","v":0}]
[null,null,null,"YTD",{"$f":"$C$2+E12","v":0},{"$f":"$C$2+F12","v":0},0,0,0,0,0,0,0,0,0,0]
["Select Distinguished",{"$f":"C2*1.03","v":0},{"$f":"ROUNDUP(B14,0)","v":0},{"$f":"C14-C2","v":0},{"$f":"D14/12","v":0},{"$f":"E14*2","v":0},{"$f":"E14*3","v":0},{"$f":"E14*4","v":0},{"$f":"E14*5","v":0},{"$f":"E14*6","v":0},{"$f":"E14*7","v":0},{"$f":"E14*8","v":0},{"$f":"E14*9","v":0},{"$f":"E14*10","v":0},{"$f":"E14*11","v":0},{"$f":"E14*12","v":0}]
[null,null,null,"YTD",{"$f":"$C$2+E14","v":0},{"$f":"$C$2+F14","v":0},0,0,0,0,0,0,0,0,0,0]
["President's Distinguished",{"$f":"C2*1.05","v":0},{"$f":"ROUNDUP(B16,0)","v":0},{"$f":"C16-C2","v":0},{"$f":"D16/12","v":0},{"$f":"E16*2","v":0},0,0,{"$f":"E16*5","v":0},0,0,0,0,0,0,0]
[null,null,null,"YTD",{"$f":"$C$2+E16","v":0},{"$f":"$C$2+F16","v":0},0,0,0,0,0,0,0,0,0,0]
["Smedley Distinguished",{"$f":"C2*1.08","v":0},{"$f":"ROUNDUP(B18,0)","v":0},{"$f":"C18-C2","v":0},{"$f":"D18/12","v":0},{"$f":"E18*2","v":0},{"$f":"E18*3","v":0},{"$f":"E18*4","v":0},{"$f":"E18*5","v":0},{"$f":"E18*6","v":0},{"$f":"E18*7","v":0},{"$f":"E18*8","v":0},{"$f":"E18*9","v":0},{"$f":"E18*10","v":0},{"$f":"E18*11","v":0},{"$f":"E18*12","v":0}]
[null,null,null,"YTD",{"$f":"$C$2+E18","v":0},{"$f":"$C$2+F18","v":0},0,0,0,0,0,0,0,0,0,0]
["Goal 3: Distinguished Clubs"]
["Distinguished",{"$f":"C2*0.4","v":0},{"$f":"ROUNDUP(B21,0)","v":0}]
["Select Distinguished",{"$f":"C2*0.45","v":0},{"$f":"ROUNDUP(B22,0)","v":0}]
["President's Distinguished",{"$f":"C2*0.5","v":0},{"$f":"ROUNDUP(B23,0)","v":0}]
["Smedley Distinguished",{"$f":"C2*0.55","v":0},{"$f":"ROUNDUP(B24,0)","v":0}]
[]
[{"$nulls":4},2.2107618010044367E-2,4.9834218690178594E-2,0.32738453201360274,0.42639463549760154,0.46010710284215034,0.47634429120780131,0.50152527700831029,0.54403467389590798,0.83121312045357298,0.930596108371056,0.96938809033173423,1.0149999999999999]
[{"$nulls":4},2.2434331576695273E-2,5.057068497624035E-2,0.332222727067991,0.43269603405175339,0.46690671519942356,0.48338386201382799,0.50893698060941839,0.55207459518501012,0.84349705819426624,0.94434876021890424,0.98371402270116892,1.03]
[{"$nulls":4},2.2869949665563143E-2,5.1552640024322686E-2,0.33867365380717529,0.44109789879062239,0.47597286500912112,0.4927699564218635,0.51881925207756252,0.56279449023714623,0.85987564184852383,0.96268562934936841,1.002815265860415,1.05]
[{"$nulls":4},2.3523376798864945E-2,5.3025572596446198E-2,0.3483500439159517,0.45370069589892587,0.48957208972366745,0.50684909803391676,0.53364265927977861,0.5788743328153505,0.88444351732991033,0.99019093304506467,1.031467130599284,1.08]
["Notes:"]

{"sheet":"July","index":2,"n_rows":32,"n_cols":10,"rows_kept":32,"cut":false,"hidden":false,"merged":[[31,1,31,7],[12,1,12,7],[16,1,16,7],[18,1,18,7],[20,1,20,7],[22,0,22,10],[23,0,25,10],[27,1,27,7],[28,1,28,7],[29,1,29,7],[30,1,30,7],[14,1,14,7],[10,1,10,7],[0,0,0,10],[2,1,2,7],[4,1,4,7],[6,1,6,7],[8,0,8,10]]}
["Goal 1: Membership Payments Growth"]
[]
[1,"Your district's membership payments year-to-date"]
[]
[2,"The membership payments growth goal to achieve Distinguished for July",{"$nulls":7},{"$f":"'Assessment Worksheet'!E7","v":0}]
[]
[3,"Have you met the membership payments growth goal for the month?",{"$nulls":7},{"$f":"IF(J3>=J5,\"Yes\",\"No\")","v":"Yes"}]
[]
["Goal 2: Club Growth"]
[]
[1,"Your district's paid clubs year-to-date"]
[]
[2,"Your district's paid club base",{"$nulls":7},{"$f":"'Assessment Worksheet'!C2","v":0}]
[]
[3,"Are your paid clubs year-to-date greater than your club base (have you seen net club growth)?",{"$nulls":7},{"$f":"IF(J11>J13,\"Yes\",\"No\")","v":"No"}]
[]
[4,"If yes, what was the net club growth?\nIf no, continue to Goal 3: Distinguished Clubs",{"$nulls":7},{"$f":"J11-J13","v":0}]
[]
[5,"The club growth goal to achieve Distinguished for July",{"$nulls":7},{"$f":"'Assessment Worksheet'!E12","v":0}]
[]
[6,"Have you met the club growth goal for the month?",{"$nulls":7},{"$f":"IF(J17>=J19,\"Yes\",\"No\")","v":"Yes"}]
[]
["Goal 3: Distinguished Clubs"]
["In the Club Performance tab, count the number of clubs with club officer lists submitted and/or club officers trained. Subtract the number of clubs with less than 20 active members. This is the number of clubs that are on track to achieve Distinguished."]
[]
[]
[]
[1,"Number of clubs you expect to be Distinguished"]
[]
[2,"The Distinguished Clubs goal to achieve Distinguished",{"$nulls":7},{"$f":"'Assessment Worksheet'!C21","v":0}]
[]
[3,"Have you met the Distinguished Clubs goal for the month?",{"$nulls":7},{"$f":"IF(J28>=J30,\"Yes\",\"No\")","v":"Yes"}]

{"sheet":"August","index":3,"n_rows":32,"n_cols":10,"rows_kept":32,"cut":false,"hidden":false,"merged":[[31,1,31,7],[12,1,12,7],[16,1,16,7],[18,1,18,7],[20,1,20,7],[22,0,22,10],[23,0,25,10],[27,1,27,7],[28,1,28,7],[29,1,29,7],[30,1,30,7],[14,1,14,7],[10,1,10,7],[0,0,0,10],[2,1,2,7],[4,1,4,7],[6,1,6,7],[8,0,8,10]]}
["Goal 1: Membership Payments Growth"]
[]
[1,"Your district's membership payments year-to-date"]
[]
[2,"The membership payments growth goal to achieve Distinguished for August",{"$nulls":7},{"$f":"'Assessment Worksheet'!F7","v":0}]
[]
[3,"Have you met the membership payments growth goal for the month?",{"$nulls":7},{"$f":"IF(J3>=J5,\"Yes\",\"No\")","v":"Yes"}]
[]
["Goal 2: Club Growth"]
[]
[1,"Your district's paid clubs year-to-date"]
[]
[2,"Your district's paid club base",{"$nulls":7},{"$f":"'Assessment Worksheet'!C2","v":0}]
[]
[3,"Are your paid clubs year-to-date greater than your club base (have you seen net club growth)?",{"$nulls":7},{"$f":"IF(J11>J13,\"Yes\",\"No\")","v":"No"}]
[]
[4,"If yes, how much greater is number 1 than number 2?\nIf no, continue to Goal 3: Distinguished Clubs",{"$nulls":7},{"$f":"J11-J13","v":0}]
[]
[5,"The club growth goal to achieve Distinguished for August",{"$nulls":7},{"$f":"'Assessment Worksheet'!F12","v":0}]
[]
[6,"Have you met the club growth goal for the month?",{"$nulls":7},{"$f":"IF(J17>=J19,\"Yes\",\"No\")","v":"Yes"}]
[]
["Goal 3: Distinguished Clubs"]
["In the Club Performance tab, count the number of clubs with one or more goals met. Subtract the number of clubs with less than 20 active members. This is the number of clubs you can reasonably expect to be Distinguished."]
[]
[]
[]
[1,"Number of clubs you expect to be Distinguished"]
[]
[2,"The Distinguished Clubs goal to achieve Distinguished",{"$nulls":7},{"$f":"'Assessment Worksheet'!C21","v":0}]
[]
[3,"Have you met the Distinguished Clubs goal for the month?",{"$nulls":7},{"$f":"IF(J28>=J30,\"Yes\",\"No\")","v":"Yes"}]

{"sheet":"September","index":4,"n_rows":32,"n_cols":10,"rows_kept":32,"cut":false,"hidden":false,"merged":[[31,1,31,7],[12,1,12,7],[16,1,16,7],[18,1,18,7],[20,1,20,7],[22,0,22,10],[23,0,25,10],[27,1,27,7],[28,1,28,7],[29,1,29,7],[30,1,30,7],[14,1,14,7],[10,1,10,7],[0,0,0,10],[2,1,2,7],[4,1,4,7],[6,1,6,7],[8,0,8,10]]}
["Goal 1: Membership Payments Growth"]
[]
[1,"Your district's membership payments year-to-date"]
[]
[2,"The membership payments growth goal to achieve Distinguished for September",{"$nulls":7},{"$f":"'Assessment Worksheet'!G7","v":0}]
[]
[3,"Have you met the membership payments growth goal for the month?",{"$nulls":7},{"$f":"IF(J3>=J5,\"Yes\",\"No\")","v":"Yes"}]
[]
["Goal 2: Club Growth"]
[]
[1,"Your district's paid clubs year-to-date"]
[]
[2,"Your district's paid club base",{"$nulls":7},{"$f":"'Assessment Worksheet'!C2","v":0}]
[]
[3,"Are your paid clubs year-to-date greater than your club base (have you seen net club growth)?",{"$nulls":7},{"$f":"IF(J11>J13,\"Yes\",\"No\")","v":"No"}]
[]
[4,"If yes, how much greater is number 1 than number 2?\nIf no, continue to Goal 3: Distinguished Clubs",{"$nulls":7},{"$f":"J11-J13","v":0}]
[]
[5,"The club growth goal to achieve Distinguished for September",{"$nulls":7},{"$f":"'Assessment Worksheet'!G12","v":0}]
[]
[6,"Have you met the club growth goal for the month?",{"$nulls":7},{"$f":"IF(J17>=J19,\"Yes\",\"No\")","v":"Yes"}]
[]
["Goal 3: Distinguished Clubs"]
["In the Club Performance tab, count the number of clubs with one or more goals met. Subtract the number of clubs with less than 20 active members. This is the number of clubs you can reasonably expect to be Distinguished."]
[]
[]
[]
[1,"Number of clubs you expect to be Distinguished"]
[]
[2,"The Distinguished Clubs goal to achieve Distinguished",{"$nulls":7},{"$f":"'Assessment Worksheet'!C21","v":0}]
[]
[3,"Have you met the Distinguished Clubs goal for the month?",{"$nulls":7},{"$f":"IF(J28>=J30,\"Yes\",\"No\")","v":"Yes"}]

{"sheet":"October","index":5,"n_rows":32,"n_cols":10,"rows_kept":32,"cut":false,"hidden":false,"merged":[[31,1,31,7],[12,1,12,7],[16,1,16,7],[18,1,18,7],[20,1,20,7],[22,0,22,10],[23,0,25,10],[27,1,27,7],[28,1,28,7],[29,1,29,7],[30,1,30,7],[14,1,14,7],[10,1,10,7],[0,0,0,10],[2,1,2,7],[4,1,4,7],[6,1,6,7],[8,0,8,10]]}
["Goal 1: Membership Payments Growth"]
[]
[1,"Your district's membership payments year-to-date"]
[]
[2,"The membership payments growth goal to achieve Distinguished for October",{"$nulls":7},{"$f":"'Assessment Worksheet'!H7","v":0}]
[]
[3,"Have you met the membership payments growth goal for the month?",{"$nulls":7},{"$f":"IF(J3>=J5,\"Yes\",\"No\")","v":"Yes"}]
[]
["Goal 2: Club Growth"]
[]
[1,"Your district's paid clubs year-to-date"]
[]
[2,"Your district's paid club base",{"$nulls":7},{"$f":"'Assessment Worksheet'!C2","v":0}]
[]
[3,"Are your paid clubs year-to-date greater than your club base (have you seen net club growth)?",{"$nulls":7},{"$f":"IF(J11>J13,\"Yes\",\"No\")","v":"No"}]
[]
[4,"If yes, how much greater is number 1 than number 2?\nIf no, continue to Goal 3: Distinguished Clubs",{"$nulls":7},{"$f":"J11-J13","v":0}]
[]
[5,"The club growth goal to achieve Distinguished for October",{"$nulls":7},{"$f":"'Assessment Worksheet'!H12","v":0}]
[]
[6,"Have you met the club growth goal for the month?",{"$nulls":7},{"$f":"IF(J17>=J19,\"Yes\",\"No\")","v":"Yes"}]
[]
["Goal 3: Distinguished Clubs"]
["In the Club Performance tab, count the number of clubs with two or more goals met. Subtract the number of clubs with less than 20 active members. This is the number of clubs you can reasonably expect to be Distinguished."]
[]
[]
[]
[1,"Number of clubs you expect to be Distinguished"]
[]
[2,"The Distinguished Clubs goal to achieve Distinguished",{"$nulls":7},{"$f":"'Assessment Worksheet'!C21","v":0}]
[]
[3,"Have you met the Distinguished Clubs goal for the month?",{"$nulls":7},{"$f":"IF(J28>=J30,\"Yes\",\"No\")","v":"Yes"}]

{"sheet":"November","index":6,"n_rows":32,"n_cols":10,"rows_kept":32,"cut":false,"hidden":false,"merged":[[31,1,31,7],[12,1,12,7],[16,1,16,7],[18,1,18,7],[20,1,20,7],[22,0,22,10],[23,0,25,10],[27,1,27,7],[28,1,28,7],[29,1,29,7],[30,1,30,7],[14,1,14,7],[10,1,10,7],[0,0,0,10],[2,1,2,7],[4,1,4,7],[6,1,6,7],[8,0,8,10]]}
["Goal 1: Membership Payments Growth"]
[]
[1,"Your district's membership payments year-to-date"]
[]
[2,"The membership payments growth goal to achieve Distinguished for November",{"$nulls":7},{"$f":"'Assessment Worksheet'!I7","v":0}]
[]
[3,"Have you met the membership payments growth goal for the month?",{"$nulls":7},{"$f":"IF(J3>=J5,\"Yes\",\"No\")","v":"Yes"}]
[]
["Goal 2: Club Growth"]
[]
[1,"Your district's paid clubs year-to-date"]
[]
[2,"Your district's paid club base",{"$nulls":7},{"$f":"'Assessment Worksheet'!C2","v":0}]
[]
[3,"Are your paid clubs year-to-date greater than your club base (have you seen net club growth)?",{"$nulls":7},{"$f":"IF(J11>J13,\"Yes\",\"No\")","v":"No"}]
[]
[4,"If yes, how much greater is number 1 than number 2?\nIf no, continue to Goal 3: Distinguished Clubs",{"$nulls":7},{"$f":"J11-J13","v":0}]
[]
[5,"The club growth goal to achieve Distinguished for November",{"$nulls":7},{"$f":"'Assessment Worksheet'!I12","v":0}]
[]
[6,"Have you met the club growth goal for the month?",{"$nulls":7},{"$f":"IF(J17>=J19,\"Yes\",\"No\")","v":"Yes"}]
[]
["Goal 3: Distinguished Clubs"]
["In the Club Performance tab, count the number of clubs with two or more goals met. Subtract the number of clubs with less than 20 active members. This is the number of clubs you can reasonably expect to be Distinguished."]
[]
[]
[]
[1,"Number of clubs you expect to be Distinguished"]
[]
[2,"The Distinguished Clubs goal to achieve Distinguished",{"$nulls":7},{"$f":"'Assessment Worksheet'!C21","v":0}]
[]
[3,"Have you met the Distinguished Clubs goal for the month?",{"$nulls":7},{"$f":"IF(J28>=J30,\"Yes\",\"No\")","v":"Yes"}]

{"sheet":"December","index":7,"n_rows":32,"n_cols":10,"rows_kept":32,"cut":false,"hidden":false,"merged":[[31,1,31,7],[12,1,12,7],[16,1,16,7],[18,1,18,7],[20,1,20,7],[22,0,22,10],[23,0,25,10],[27,1,27,7],[28,1,28,7],[29,1,29,7],[30,1,30,7],[14,1,14,7],[10,1,10,7],[0,0,0,10],[2,1,2,7],[4,1,4,7],[6,1,6,7],[8,0,8,10]]}
["Goal 1: Membership Payments Growth"]
[]
[1,"Your district's membership payments year-to-date"]
[]
[2,"The membership payments growth goal to achieve Distinguished for December",{"$nulls":7},{"$f":"'Assessment Worksheet'!J7","v":0}]
[]
[3,"Have you met the membership payments growth goal for the month?",{"$nulls":7},{"$f":"IF(J3>=J5,\"Yes\",\"No\")","v":"Yes"}]
[]
["Goal 2: Club Growth"]
[]
[1,"Your district's paid clubs year-to-date"]
[]
[2,"Your district's paid club base",{"$nulls":7},{"$f":"'Assessment Worksheet'!C2","v":0}]
[]
[3,"Are your paid clubs year-to-date greater than your club base (have you seen net club growth)?",{"$nulls":7},{"$f":"IF(J11>J13,\"Yes\",\"No\")","v":"No"}]
[]
[4,"If yes, how much greater is number 1 than number 2?\nIf no, continue to Goal 3: Distinguished Clubs",{"$nulls":7},{"$f":"J11-J13","v":0}]
[]
[5,"The club growth goal to achieve Distinguished for December",{"$nulls":7},{"$f":"'Assessment Worksheet'!J12","v":0}]
[]
[6,"Have you met the club growth goal for the month?",{"$nulls":7},{"$f":"IF(J17>=J19,\"Yes\",\"No\")","v":"Yes"}]
[]
["Goal 3: Distinguished Clubs"]
["In the Club Performance tab, count the number of clubs with three or more goals met. Subtract the number of clubs with less than 20 active members. This is the number of clubs you can reasonably expect to be Distinguished."]
[]
[]
[]
[1,"Number of clubs you expect to be Distinguished"]
[]
[2,"The Distinguished Clubs goal to achieve Distinguished",{"$nulls":7},{"$f":"'Assessment Worksheet'!C21","v":0}]
[]
[3,"Have you met the Distinguished Clubs goal for the month?",{"$nulls":7},{"$f":"IF(J28>=J30,\"Yes\",\"No\")","v":"Yes"}]

{"sheet":"January","index":8,"n_rows":32,"n_cols":10,"rows_kept":32,"cut":false,"hidden":false,"merged":[[0,0,0,10],[8,0,8,10],[22,0,22,10],[23,0,25,10],[2,1,2,7],[4,1,4,7],[20,1,20,7],[6,1,6,7],[31,1,31,7],[10,1,10,7],[12,1,12,7],[16,1,16,7],[18,1,18,7],[27,1,27,7],[28,1,28,7],[29,1,29,7],[30,1,30,7],[14,1,14,7]]}
["Goal 1: Membership Payments Growth"]
[]
[1,"Your district's membership payments year-to-date"]
[]
[2,"The membership payments growth goal to achieve Distinguished for January",{"$nulls":7},{"$f":"'Assessment Worksheet'!K7","v":0}]
[]
[3,"Have you met the membership payments growth goal for the month?",{"$nulls":7},{"$f":"IF(J3>=J5,\"Yes\",\"No\")","v":"Yes"}]
[]
["Goal 2: Club Growth"]
[]
[1,"Your district's paid clubs year-to-date"]
[]
[2,"Your district's paid club base",{"$nulls":7},{"$f":"'Assessment Worksheet'!C2","v":0}]
[]
[3,"Are your paid clubs year-to-date greater than your club base (have you seen net club growth)?",{"$nulls":7},{"$f":"IF(J11>J13,\"Yes\",\"No\")","v":"No"}]
[]
[4,"If yes, how much greater is number 1 than number 2?\nIf no, continue to Goal 3: Distinguished Clubs",{"$nulls":7},{"$f":"J11-J13","v":0}]
[]
[5,"The club growth goal to achieve Distinguished for January",{"$nulls":7},{"$f":"'Assessment Worksheet'!K12","v":0}]
[]
[6,"Have you met the club growth goal for the month?",{"$nulls":7},{"$f":"IF(J17>=J19,\"Yes\",\"No\")","v":"Yes"}]
[]
["Goal 3: Distinguished Clubs"]
["In the Club Performance tab, count the number of clubs with three or more goals met. Subtract the number of clubs with less than 20 active members. This is the number of clubs you can reasonably expect to be Distinguished."]
[]
[]
[]
[1,"Number of clubs you expect to be Distinguished"]
[]
[2,"The Distinguished Clubs goal to achieve Distinguished",{"$nulls":7},{"$f":"'Assessment Worksheet'!C21","v":0}]
[]
[3,"Have you met the Distinguished Clubs goal for the month?",{"$nulls":7},{"$f":"IF(J28>=J30,\"Yes\",\"No\")","v":"Yes"}]

{"sheet":"February","index":9,"n_rows":32,"n_cols":10,"rows_kept":32,"cut":false,"hidden":false,"merged":[[31,1,31,7],[12,1,12,7],[16,1,16,7],[18,1,18,7],[20,1,20,7],[22,0,22,10],[23,0,25,10],[27,1,27,7],[28,1,28,7],[29,1,29,7],[30,1,30,7],[14,1,14,7],[10,1,10,7],[0,0,0,10],[2,1,2,7],[4,1,4,7],[6,1,6,7],[8,0,8,10]]}
["Goal 1: Membership Payments Growth"]
[]
[1,"Your district's membership payments year-to-date"]
[]
[2,"The membership payments growth goal to achieve Distinguished for February",{"$nulls":7},{"$f":"'Assessment Worksheet'!L7","v":0}]
[]
[3,"Have you met the membership payments growth goal for the month?",{"$nulls":7},{"$f":"IF(J3>=J5,\"Yes\",\"No\")","v":"Yes"}]
[]
["Goal 2: Club Growth"]
[]
[1,"Your district's paid clubs year-to-date"]
[]
[2,"Your district's paid club base",{"$nulls":7},{"$f":"'Assessment Worksheet'!C2","v":0}]
[]
[3,"Are your paid clubs year-to-date greater than your club base (have you seen net club growth)?",{"$nulls":7},{"$f":"IF(J11>J13,\"Yes\",\"No\")","v":"No"}]
[]
[4,"If yes, how much greater is number 1 than number 2?\nIf no, continue to Goal 3: Distinguished Clubs",{"$nulls":7},{"$f":"J11-J13","v":0}]
[]
[5,"The club growth goal to achieve Distinguished for February",{"$nulls":7},{"$f":"'Assessment Worksheet'!L12","v":0}]
[]
[6,"Have you met the club growth goal for the month?",{"$nulls":7},{"$f":"IF(J17>=J19,\"Yes\",\"No\")","v":"Yes"}]
[]
["Goal 3: Distinguished Clubs"]
["In the Club Performance tab, count the number of clubs with four or more goals met. Subtract the number of clubs with less than 20 active members. This is the number of clubs you can reasonably expect to be Distinguished."]
[]
[]
[]
[1,"Number of clubs you expect to be Distinguished"]
[]
[2,"The Distinguished Clubs goal to achieve Distinguished",{"$nulls":7},{"$f":"'Assessment Worksheet'!C21","v":0}]
[]
[3,"Have you met the Distinguished Clubs goal for the month?",{"$nulls":7},{"$f":"IF(J28>=J30,\"Yes\",\"No\")","v":"Yes"}]

{"sheet":"March","index":10,"n_rows":32,"n_cols":10,"rows_kept":32,"cut":false,"hidden":false,"merged":[[31,1,31,7],[12,1,12,7],[16,1,16,7],[18,1,18,7],[20,1,20,7],[22,0,22,10],[23,0,25,10],[27,1,27,7],[28,1,28,7],[29,1,29,7],[30,1,30,7],[14,1,14,7],[10,1,10,7],[0,0,0,10],[2,1,2,7],[4,1,4,7],[6,1,6,7],[8,0,8,10]]}
["Goal 1: Membership Payments Growth"]
[]
[1,"Your district's membership payments year-to-date"]
[]
[2,"The membership payments growth goal to achieve Distinguished for March",{"$nulls":7},{"$f":"'Assessment Worksheet'!M7","v":0}]
[]
[3,"Have you met the membership payments growth goal for the month?",{"$nulls":7},{"$f":"IF(J3>=J5,\"Yes\",\"No\")","v":"Yes"}]
[]
["Goal 2: Club Growth"]
[]
[1,"Your district's paid clubs year-to-date"]
[]
[2,"Your district's paid club base",{"$nulls":7},{"$f":"'Assessment Worksheet'!C2","v":0}]
[]
[3,"Are your paid clubs year-to-date greater than your club base (have you seen net club growth)?",{"$nulls":7},{"$f":"IF(J11>J13,\"Yes\",\"No\")","v":"No"}]
[]
[4,"If yes, how much greater is number 1 than number 2?\nIf no, continue to Goal 3: Distinguished Clubs",{"$nulls":7},{"$f":"J11-J13","v":0}]
[]
[5,"The club growth goal to achieve Distinguished for March",{"$nulls":7},{"$f":"'Assessment Worksheet'!M12","v":0}]
[]
[6,"Have you met the club growth goal for the month?",{"$nulls":7},{"$f":"IF(J17>=J19,\"Yes\",\"No\")","v":"Yes"}]
[]
["Goal 3: Distinguished Clubs"]
["In the Club Performance tab, count the number of clubs with four or more goals met. Subtract the number of clubs with less than 20 active members. This is the number of clubs you can reasonably expect to be Distinguished."]
[]
[]
[]
[1,"Number of clubs you expect to be Distinguished"]
[]
[2,"The Distinguished Clubs goal to achieve Distinguished",{"$nulls":7},{"$f":"'Assessment Worksheet'!C21","v":0}]
[]
[3,"Have you met the Distinguished Clubs goal for the month?",{"$nulls":7},{"$f":"IF(J28>=J30,\"Yes\",\"No\")","v":"Yes"}]

{"sheet":"April","index":11,"n_rows":32,"n_cols":10,"rows_kept":32,"cut":false,"hidden":false,"merged":[[31,1,31,7],[12,1,12,7],[16,1,16,7],[18,1,18,7],[20,1,20,7],[22,0,22,10],[23,0,25,10],[27,1,27,7],[28,1,28,7],[29,1,29,7],[30,1,30,7],[14,1,14,7],[10,1,10,7],[0,0,0,10],[2,1,2,7],[4,1,4,7],[6,1,6,7],[8,0,8,10]]}
["Goal 1: Membership Payments Growth"]
[]
[1,"Your district's membership payments year-to-date"]
[]
[2,"The membership payments growth goal to achieve Distinguished for April",{"$nulls":7},{"$f":"'Assessment Worksheet'!N7","v":0}]
[]
[3,"Have you met the membership payments growth goal for the month?",{"$nulls":7},{"$f":"IF(J3>=J5,\"Yes\",\"No\")","v":"Yes"}]
[]
["Goal 2: Club Growth"]
[]
[1,"Your district's paid clubs year-to-date"]
[]
[2,"Your district's paid club base",{"$nulls":7},{"$f":"'Assessment Worksheet'!C2","v":0}]
[]
[3,"Are your paid clubs year-to-date greater than your club base (have you seen net club growth)?",{"$nulls":7},{"$f":"IF(J11>J13,\"Yes\",\"No\")","v":"No"}]
[]
[4,"If yes, how much greater is number 1 than number 2?\nIf no, continue to Goal 3: Distinguished Clubs",{"$nulls":7},{"$f":"J11-J13","v":0}]
[]
[5,"The club growth goal to achieve Distinguished for April",{"$nulls":7},{"$f":"'Assessment Worksheet'!N12","v":0}]
[]
[6,"Have you met the club growth goal for the month?",{"$nulls":7},{"$f":"IF(J17>=J19,\"Yes\",\"No\")","v":"Yes"}]
[]
["Goal 3: Distinguished Clubs"]
["In the Club Performance tab, count the number of clubs with five or more goals met. Subtract the number of clubs with less than 20 active members. This is the number of clubs you can reasonably expect to be Distinguished."]
[]
[]
[]
[1,"Number of clubs you expect to be Distinguished"]
[]
[2,"The Distinguished Clubs goal to achieve Distinguished",{"$nulls":7},{"$f":"'Assessment Worksheet'!C21","v":0}]
[]
[3,"Have you met the Distinguished Clubs goal for the month?",{"$nulls":7},{"$f":"IF(J28>=J30,\"Yes\",\"No\")","v":"Yes"}]

{"sheet":"May","index":12,"n_rows":32,"n_cols":10,"rows_kept":32,"cut":false,"hidden":false,"merged":[[31,1,31,7],[12,1,12,7],[16,1,16,7],[18,1,18,7],[20,1,20,7],[22,0,22,10],[23,0,25,10],[27,1,27,7],[28,1,28,7],[29,1,29,7],[30,1,30,7],[14,1,14,7],[10,1,10,7],[0,0,0,10],[2,1,2,7],[4,1,4,7],[6,1,6,7],[8,0,8,10]]}
["Goal 1: Membership Payments Growth"]
[]
[1,"Your district's membership payments year-to-date"]
[]
[2,"The membership payments growth goal to achieve Distinguished for May",{"$nulls":7},{"$f":"'Assessment Worksheet'!O7","v":0}]
[]
[3,"Have you met the membership payments growth goal for the month?",{"$nulls":7},{"$f":"IF(J3>=J5,\"Yes\",\"No\")","v":"Yes"}]
[]
["Goal 2: Club Growth"]
[]
[1,"Your district's paid clubs year-to-date"]
[]
[2,"Your district's paid club base",{"$nulls":7},{"$f":"'Assessment Worksheet'!C2","v":0}]
[]
[3,"Are your paid clubs year-to-date greater than your club base (have you seen net club growth)?",{"$nulls":7},{"$f":"IF(J11>J13,\"Yes\",\"No\")","v":"No"}]
[]
[4,"If yes, how much greater is number 1 than number 2?\nIf no, continue to Goal 3: Distinguished Clubs",{"$nulls":7},{"$f":"J11-J13","v":0}]
[]
[5,"The club growth goal to achieve Distinguished for May",{"$nulls":7},{"$f":"'Assessment Worksheet'!O12","v":0}]
[]
[6,"Have you met the club growth goal for the month?",{"$nulls":7},{"$f":"IF(J17>=J19,\"Yes\",\"No\")","v":"Yes"}]
[]
["Goal 3: Distinguished Clubs"]
["In the Club Performance tab, count the number of clubs with five or more goals met. Subtract the number of clubs with less than 20 active members. This is the number of clubs you can reasonably expect to be Distinguished."]
[]
[]
[]
[1,"Number of clubs you expect to be Distinguished"]
[]
[2,"The Distinguished Clubs goal to achieve Distinguished",{"$nulls":7},{"$f":"'Assessment Worksheet'!C21","v":0}]
[]
[3,"Have you met the Distinguished Clubs goal for the month?",{"$nulls":7},{"$f":"IF(J28>=J30,\"Yes\",\"No\")","v":"Yes"}]

{"sheet":"June","index":13,"n_rows":32,"n_cols":10,"rows_kept":32,"cut":false,"hidden":false,"merged":[[31,1,31,7],[12,1,12,7],[16,1,16,7],[18,1,18,7],[20,1,20,7],[22,0,22,10],[23,0,25,10],[27,1,27,7],[28,1,28,7],[29,1,29,7],[30,1,30,7],[14,1,14,7],[10,1,10,7],[0,0,0,10],[2,1,2,7],[4,1,4,7],[6,1,6,7],[8,0,8,10]]}
["Goal 1: Membership Payments Growth"]
[]
[1,"Your district's membership payments year-to-date"]
[]
[2,"The membership payments growth goal to achieve Distinguished for June",{"$nulls":7},{"$f":"'Assessment Worksheet'!P7","v":0}]
[]
[3,"Have you met the membership payments growth goal for the month?",{"$nulls":7},{"$f":"IF(J3>=J5,\"Yes\",\"No\")","v":"Yes"}]
[]
["Goal 2: Club Growth"]
[]
[1,"Your district's paid clubs year-to-date"]
[]
[2,"Your district's paid club base",{"$nulls":7},{"$f":"'Assessment Worksheet'!C2","v":0}]
[]
[3,"Are your paid clubs year-to-date greater than your club base (have you seen net club growth)?",{"$nulls":7},{"$f":"IF(J11>J13,\"Yes\",\"No\")","v":"No"}]
[]
[4,"If yes, how much greater is number 1 than number 2?\nIf no, continue to Goal 3: Distinguished Clubs",{"$nulls":7},{"$f":"J11-J13","v":0}]
[]
[5,"The club growth goal to achieve Distinguished for June",{"$nulls":7},{"$f":"'Assessment Worksheet'!P12","v":0}]
[]
[6,"Have you met the club growth goal for the month?",{"$nulls":7},{"$f":"IF(J17>=J19,\"Yes\",\"No\")","v":"Yes"}]
[]
["Goal 3: Distinguished Clubs"]
["In the Club Performance tab, count the number of clubs with five or more goals met. Subtract the number of clubs with less than 20 active members. This is the number of clubs you can reasonably expect to be Distinguished."]
[]
[]
[]
[1,"Number of clubs you expect to be Distinguished"]
[]
[2,"The Distinguished Clubs goal to achieve Distinguished",{"$nulls":7},{"$f":"'Assessment Worksheet'!C21","v":0}]
[]
[3,"Have you met the Distinguished Clubs goal for the month?",{"$nulls":7},{"$f":"IF(J28>=J30,\"Yes\",\"No\")","v":"Yes"}]